[Event "Titled Tuesday Blitz January 04 2022"]
[White "Nakamura, Hikaru"]
[Black "Harutjunyan, Gevorg"]
[WhiteFideId "2016192"]
[BlackFideId "13300873"]
[WhiteElo "2850"]
[BlackElo "2498"]
[Result "1-0"]
[Round "07"]
[TimeControl "180+1"]
[Date "2022.01.04"]
[WhiteClock "0:01:32"]
[BlackClock "0:00:21"]

1. e4 {[%clk 0:03:00]}  c6 {[%clk 0:02:59]} 2. Nf3 {[%clk 0:02:58]}  d5 {[%clk 0:02:59]} 3. Nc3 {[%clk 0:02:59]}  Bg4 {[%clk 0:02:56]} 4. h3 {[%clk 0:02:57]}  Bh5 {[%clk 0:02:56]} 5. exd5 {[%clk 0:02:56]}  cxd5 {[%clk 0:02:57]} 6. g4 {[%clk 0:02:56]}  Bg6 {[%clk 0:02:58]} 7. Ne5 {[%clk 0:02:57]}  Nc6 {[%clk 0:02:58]} 8. Bb5 {[%clk 0:02:56]}  Rc8 {[%clk 0:02:58]} 9. d4 {[%clk 0:02:56]}  e6 {[%clk 0:02:57]} 10. h4 {[%clk 0:02:55]}  f6 {[%clk 0:02:56]} 11. Nxg6 {[%clk 0:02:54]}  hxg6 {[%clk 0:02:57]} 12. Qd3 {[%clk 0:02:55]}  Kf7 {[%clk 0:02:55]} 13. h5 {[%clk 0:02:54]}  gxh5 {[%clk 0:02:55]} 14. gxh5 {[%clk 0:02:54]}  Nge7 {[%clk 0:02:55]} 15. Bxc6 {[%clk 0:02:54]}  bxc6 {[%clk 0:02:51]} 16. Ne2 {[%clk 0:02:41]}  c5 {[%clk 0:02:38]} 17. dxc5 {[%clk 0:02:39]}  Qa5+ {[%clk 0:02:30]} 18. c3 {[%clk 0:02:37]}  Qxc5 {[%clk 0:02:30]} 19. Be3 {[%clk 0:02:36]}  Qa5 {[%clk 0:02:08]} 20. Nf4 {[%clk 0:02:30]}  Nf5 {[%clk 0:02:00]} 21. Ng6 {[%clk 0:02:27]}  Rxh5 {[%clk 0:01:52]} 22. Rxh5 {[%clk 0:02:25]}  Kxg6 {[%clk 0:01:52]} 23. Rh3 {[%clk 0:02:19]}  Bd6 {[%clk 0:01:49]} 24. Bd2 {[%clk 0:02:18]}  Qb6 {[%clk 0:01:43]} 25. O-O-O {[%clk 0:02:07]}  Kf7 {[%clk 0:01:44]} 26. Qe2 {[%clk 0:02:05]}  d4 {[%clk 0:01:37]} 27. Kb1 {[%clk 0:02:01]}  Be5 {[%clk 0:01:31]} 28. Rc1 {[%clk 0:01:55]}  dxc3 {[%clk 0:01:27]} 29. Bxc3 {[%clk 0:01:54]}  Bxc3 {[%clk 0:01:26]} 30. Rhxc3 {[%clk 0:01:54]}  Rxc3 {[%clk 0:01:20]} 31. Rxc3 {[%clk 0:01:55]}  Qb7 {[%clk 0:01:14]} 32. a3 {[%clk 0:01:52]}  Qh1+ {[%clk 0:00:56]} 33. Ka2 {[%clk 0:01:49]}  Qd5+ {[%clk 0:00:49]} 34. Qc4 {[%clk 0:01:49]}  Ne7 {[%clk 0:00:34]} 35. Qxd5 {[%clk 0:01:46]}  Nxd5 {[%clk 0:00:35]} 36. Rc4 {[%clk 0:01:46]}  g5 {[%clk 0:00:36]} 37. Ra4 {[%clk 0:01:47]}  f5 {[%clk 0:00:37]} 38. Rxa7+ {[%clk 0:01:47]}  Kf6 {[%clk 0:00:38]} 39. Ra8 {[%clk 0:01:39]}  g4 {[%clk 0:00:38]} 40. Kb3 {[%clk 0:01:37]}  f4 {[%clk 0:00:38]} 41. Kc2 {[%clk 0:01:37]}  e5 {[%clk 0:00:38]} 42. Kd3 {[%clk 0:01:37]}  Kf5 {[%clk 0:00:37]} 43. Rf8+ {[%clk 0:01:36]}  Nf6 {[%clk 0:00:37]} 44. a4 {[%clk 0:01:35]}  e4+ {[%clk 0:00:33]} 45. Ke2 {[%clk 0:01:35]}  Ke5 {[%clk 0:00:30]} 46. Rxf6 {[%clk 0:01:32]}  Kxf6 {[%clk 0:00:30]} 47. a5 {[%clk 0:01:32]}  g3 {[%clk 0:00:22]} 48. fxg3 {[%clk 0:01:32]}  fxg3 {[%clk 0:00:21]} 49. a6 {[%clk 0:01:32]} 1-0


[Site "https://www.chess.com"]

[Event "Titled Tuesday Blitz January 04 2022"]
[White "Ovchinnikov, Vsevolod"]
[Black "Svane, Rasmus"]
[WhiteFideId "24176842"]
[BlackFideId "4657101"]
[WhiteElo "2376"]
[BlackElo "2645"]
[Result "0-1"]
[Round "07"]
[TimeControl "180+1"]
[Date "2022.01.04"]
[WhiteClock "0:00:04"]
[BlackClock "0:00:32"]

1. d4 {[%clk 0:03:00]}  d5 {[%clk 0:02:59]} 2. c4 {[%clk 0:03:01]}  e6 {[%clk 0:03:00]} 3. Nf3 {[%clk 0:03:02]}  a6 {[%clk 0:03:00]} 4. e3 {[%clk 0:02:57]}  Nf6 {[%clk 0:03:00]} 5. Nbd2 {[%clk 0:02:57]}  b6 {[%clk 0:02:58]} 6. g3 {[%clk 0:02:56]}  Bb7 {[%clk 0:02:58]} 7. Bg2 {[%clk 0:02:57]}  c5 {[%clk 0:02:57]} 8. cxd5 {[%clk 0:02:55]}  Bxd5 {[%clk 0:02:55]} 9. O-O {[%clk 0:02:54]}  Nbd7 {[%clk 0:02:43]} 10. b3 {[%clk 0:02:45]}  Be7 {[%clk 0:02:33]} 11. Bb2 {[%clk 0:02:45]}  O-O {[%clk 0:02:33]} 12. Rc1 {[%clk 0:02:46]}  Rc8 {[%clk 0:02:29]} 13. Qe2 {[%clk 0:02:46]}  b5 {[%clk 0:02:27]} 14. Rfd1 {[%clk 0:02:44]}  Qa5 {[%clk 0:02:23]} 15. a3 {[%clk 0:02:35]}  cxd4 {[%clk 0:02:18]} 16. Nxd4 {[%clk 0:02:23]}  Bxa3 {[%clk 0:01:56]} 17. Ra1 {[%clk 0:01:30]}  b4 {[%clk 0:01:55]} 18. e4 {[%clk 0:01:30]}  Bb7 {[%clk 0:01:30]} 19. Nc4 {[%clk 0:01:29]}  Qc7 {[%clk 0:01:27]} 20. Nxa3 {[%clk 0:01:27]}  bxa3 {[%clk 0:01:27]} 21. Bxa3 {[%clk 0:01:27]}  Rfd8 {[%clk 0:01:27]} 22. Be7 {[%clk 0:01:16]}  Re8 {[%clk 0:01:27]} 23. Bb4 {[%clk 0:01:17]}  h6 {[%clk 0:01:24]} 24. f3 {[%clk 0:01:07]}  e5 {[%clk 0:01:15]} 25. Ba5 {[%clk 0:00:09]}  Qc5 {[%clk 0:01:13]} 26. Qf2 {[%clk 0:00:07]}  exd4 {[%clk 0:01:13]} 27. Qxd4 {[%clk 0:00:08]}  Qxd4+ {[%clk 0:00:55]} 28. Rxd4 {[%clk 0:00:09]}  Nc5 {[%clk 0:00:56]} 29. Rb1 {[%clk 0:00:08]}  Bc6 {[%clk 0:00:56]} 30. b4 {[%clk 0:00:07]}  Ne6 {[%clk 0:00:55]} 31. Rd2 {[%clk 0:00:08]}  Bb5 {[%clk 0:00:55]} 32. Bh3 {[%clk 0:00:08]}  Rc3 {[%clk 0:00:54]} 33. Kf2 {[%clk 0:00:08]}  Ng5 {[%clk 0:00:39]} 34. Bg2 {[%clk 0:00:08]}  Rec8 {[%clk 0:00:39]} 35. Rbd1 {[%clk 0:00:08]}  Ne6 {[%clk 0:00:36]} 36. h4 {[%clk 0:00:08]}  Ba4 {[%clk 0:00:35]} 37. Re1 {[%clk 0:00:08]}  Bb5 {[%clk 0:00:34]} 38. Red1 {[%clk 0:00:08]}  Rc2 {[%clk 0:00:34]} 39. Bh3 {[%clk 0:00:08]}  h5 {[%clk 0:00:32]} 40. Bf5 {[%clk 0:00:07]}  g6 {[%clk 0:00:32]} 41. Bh3 {[%clk 0:00:07]}  R8c3 {[%clk 0:00:32]} 42. e5 {[%clk 0:00:06]}  Nd5 {[%clk 0:00:31]} 43. Rxc2 {[%clk 0:00:04]}  Rxc2+ {[%clk 0:00:32]} 44. Ke1 {[%clk 0:00:04]}  Re2+ {[%clk 0:00:31]} 45. Kf1 {[%clk 0:00:04]}  Ne3+ {[%clk 0:00:32]} 0-1


[Site "https://www.chess.com"]

[Event "Titled Tuesday Blitz January 04 2022"]
[White "Ozen, Bahadir"]
[Black "Samadov, Read"]
[WhiteFideId "6337058"]
[BlackFideId "13417444"]
[WhiteElo "2503"]
[BlackElo "2084"]
[Result "1/2-1/2"]
[Round "07"]
[TimeControl "180+1"]
[Date "2022.01.04"]
[WhiteClock "0:01:41"]
[BlackClock "0:01:27"]

1. c4 {[%clk 0:03:00]}  e5 {[%clk 0:02:59]} 2. Nc3 {[%clk 0:03:01]}  Nf6 {[%clk 0:02:59]} 3. Nf3 {[%clk 0:03:01]}  Nc6 {[%clk 0:02:59]} 4. e4 {[%clk 0:03:02]}  Bb4 {[%clk 0:02:59]} 5. d3 {[%clk 0:03:01]}  O-O {[%clk 0:02:57]} 6. a3 {[%clk 0:02:58]}  Bc5 {[%clk 0:02:55]} 7. b4 {[%clk 0:02:57]}  Bd4 {[%clk 0:02:55]} 8. Nxd4 {[%clk 0:02:57]}  Nxd4 {[%clk 0:02:55]} 9. Be3 {[%clk 0:02:51]}  d6 {[%clk 0:02:54]} 10. Be2 {[%clk 0:02:51]}  a5 {[%clk 0:02:53]} 11. b5 {[%clk 0:02:50]}  c6 {[%clk 0:02:52]} 12. a4 {[%clk 0:02:37]}  d5 {[%clk 0:02:49]} 13. cxd5 {[%clk 0:02:33]}  cxd5 {[%clk 0:02:48]} 14. Bxd4 {[%clk 0:02:30]}  exd4 {[%clk 0:02:48]} 15. Nxd5 {[%clk 0:02:31]}  Nxd5 {[%clk 0:02:47]} 16. exd5 {[%clk 0:02:32]}  Qxd5 {[%clk 0:02:44]} 17. O-O {[%clk 0:02:32]}  Bf5 {[%clk 0:02:41]} 18. Bf3 {[%clk 0:02:29]}  Qd7 {[%clk 0:02:40]} 19. Qd2 {[%clk 0:02:29]}  Rfc8 {[%clk 0:02:34]} 20. Rac1 {[%clk 0:02:28]}  Rxc1 {[%clk 0:02:29]} 21. Rxc1 {[%clk 0:02:27]}  Rc8 {[%clk 0:02:29]} 22. h3 {[%clk 0:02:02]}  Rxc1+ {[%clk 0:02:24]} 23. Qxc1 {[%clk 0:02:02]}  Bxd3 {[%clk 0:02:23]} 24. Qd2 {[%clk 0:02:03]}  Bg6 {[%clk 0:01:34]} 25. Qxa5 {[%clk 0:02:00]}  Qc8 {[%clk 0:01:29]} 26. Bxb7 {[%clk 0:01:42]}  Qc1+ {[%clk 0:01:26]} 27. Kh2 {[%clk 0:01:43]}  Qf4+ {[%clk 0:01:27]} 28. Kg1 {[%clk 0:01:41]}  Qc1+ {[%clk 0:01:27]} 29. Kh2 {[%clk 0:01:41]}  Qf4+ {[%clk 0:01:27]} 30. Kg1 {[%clk 0:01:41]}  Qc1+ {[%clk 0:01:27]} 1/2-1/2


[Site "https://www.chess.com"]

[Event "Titled Tuesday Blitz January 04 2022"]
[White "Padmini, Rout"]
[Black "Safarli, Eltaj"]
[WhiteFideId "5029295"]
[BlackFideId "13402129"]
[WhiteElo "2181"]
[BlackElo "2634"]
[Result "1/2-1/2"]
[Round "07"]
[TimeControl "180+1"]
[Date "2022.01.04"]
[WhiteClock "0:00:02"]
[BlackClock "0:00:26"]

1. e4 {[%clk 0:03:00]}  e5 {[%clk 0:02:58]} 2. Nf3 {[%clk 0:03:00]}  Nc6 {[%clk 0:02:59]} 3. Bb5 {[%clk 0:03:00]}  a6 {[%clk 0:02:59]} 4. Ba4 {[%clk 0:03:00]}  d6 {[%clk 0:03:00]} 5. O-O {[%clk 0:02:59]}  Bd7 {[%clk 0:03:00]} 6. c3 {[%clk 0:02:59]}  g6 {[%clk 0:03:00]} 7. d4 {[%clk 0:02:59]}  Bg7 {[%clk 0:03:00]} 8. Re1 {[%clk 0:02:57]}  b5 {[%clk 0:03:00]} 9. Bb3 {[%clk 0:02:53]}  Nf6 {[%clk 0:03:00]} 10. Bg5 {[%clk 0:02:53]}  h6 {[%clk 0:03:00]} 11. Bh4 {[%clk 0:02:53]}  O-O {[%clk 0:03:01]} 12. h3 {[%clk 0:02:44]}  Re8 {[%clk 0:03:01]} 13. Nbd2 {[%clk 0:02:43]}  Qb8 {[%clk 0:02:58]} 14. Bc2 {[%clk 0:02:28]}  Qb6 {[%clk 0:02:52]} 15. dxe5 {[%clk 0:02:15]}  Nxe5 {[%clk 0:02:48]} 16. Nxe5 {[%clk 0:02:14]}  dxe5 {[%clk 0:02:44]} 17. Qe2 {[%clk 0:02:04]}  Nh5 {[%clk 0:02:37]} 18. Nf1 {[%clk 0:02:03]}  Nf4 {[%clk 0:02:34]} 19. Qe3 {[%clk 0:02:02]}  c5 {[%clk 0:02:28]} 20. Qf3 {[%clk 0:01:56]}  Qe6 {[%clk 0:02:18]} 21. Ne3 {[%clk 0:01:51]}  Bc6 {[%clk 0:02:19]} 22. Bg3 {[%clk 0:01:47]}  Nh5 {[%clk 0:02:01]} 23. Nd5 {[%clk 0:01:36]}  Nxg3 {[%clk 0:01:56]} 24. Nc7 {[%clk 0:01:17]}  Qe7 {[%clk 0:01:56]} 25. Nxe8 {[%clk 0:01:17]}  Rxe8 {[%clk 0:01:56]} 26. Qxg3 {[%clk 0:01:16]}  h5 {[%clk 0:01:54]} 27. Rad1 {[%clk 0:01:13]}  Bh6 {[%clk 0:01:54]} 28. Qd3 {[%clk 0:00:50]}  c4 {[%clk 0:01:45]} 29. Qd6 {[%clk 0:00:50]}  Qb7 {[%clk 0:01:45]} 30. Qf6 {[%clk 0:00:44]}  b4 {[%clk 0:00:48]} 31. Rd8 {[%clk 0:00:43]}  Rxd8 {[%clk 0:00:47]} 32. Qxd8+ {[%clk 0:00:42]}  Kg7 {[%clk 0:00:48]} 33. Qd6 {[%clk 0:00:41]}  bxc3 {[%clk 0:00:39]} 34. Qxe5+ {[%clk 0:00:40]}  Kh7 {[%clk 0:00:40]} 35. Qxc3 {[%clk 0:00:39]}  Bd7 {[%clk 0:00:34]} 36. Qxc4 {[%clk 0:00:32]}  Be6 {[%clk 0:00:35]} 37. Qc3 {[%clk 0:00:32]}  Bg7 {[%clk 0:00:34]} 38. e5 {[%clk 0:00:31]}  Bd5 {[%clk 0:00:34]} 39. f3 {[%clk 0:00:27]}  Qb6+ {[%clk 0:00:34]} 40. Kh1 {[%clk 0:00:27]}  Qf2 {[%clk 0:00:33]} 41. Bb3 {[%clk 0:00:25]}  Bxb3 {[%clk 0:00:27]} 42. axb3 {[%clk 0:00:26]}  Bh6 {[%clk 0:00:28]} 43. Rd1 {[%clk 0:00:18]}  Bf4 {[%clk 0:00:26]} 44. Qc4 {[%clk 0:00:14]}  Qg3 {[%clk 0:00:23]} 45. Qxf7+ {[%clk 0:00:13]}  Kh6 {[%clk 0:00:24]} 46. Qf8+ {[%clk 0:00:13]}  Kg5 {[%clk 0:00:25]} 47. Qf6+ {[%clk 0:00:12]}  Kh6 {[%clk 0:00:25]} 48. Qf8+ {[%clk 0:00:09]}  Kg5 {[%clk 0:00:25]} 49. Qe7+ {[%clk 0:00:07]}  Kh6 {[%clk 0:00:26]} 50. Qf8+ {[%clk 0:00:02]} 1/2-1/2


[Site "https://www.chess.com"]

[Event "Titled Tuesday Blitz January 04 2022"]
[White "Sanal, Vahap"]
[Black "Sjugirov, Sanan"]
[WhiteFideId "6300545"]
[BlackFideId "4189302"]
[WhiteElo "2603"]
[BlackElo "2602"]
[Result "0-1"]
[Round "07"]
[TimeControl "180+1"]
[Date "2022.01.04"]
[WhiteClock "0:00:09"]
[BlackClock "0:00:07"]

1. Nf3 {[%clk 0:03:00]}  d5 {[%clk 0:02:59]} 2. b3 {[%clk 0:03:01]}  Bf5 {[%clk 0:02:54]} 3. Bb2 {[%clk 0:03:01]}  e6 {[%clk 0:02:55]} 4. g3 {[%clk 0:02:59]}  h6 {[%clk 0:02:53]} 5. Bg2 {[%clk 0:02:59]}  Nf6 {[%clk 0:02:53]} 6. O-O {[%clk 0:03:00]}  Be7 {[%clk 0:02:51]} 7. d3 {[%clk 0:03:00]}  O-O {[%clk 0:02:51]} 8. Nbd2 {[%clk 0:03:01]}  Bh7 {[%clk 0:02:49]} 9. e4 {[%clk 0:02:58]}  a5 {[%clk 0:02:42]} 10. a4 {[%clk 0:02:57]}  Na6 {[%clk 0:02:39]} 11. Qe2 {[%clk 0:02:50]}  Nb4 {[%clk 0:02:38]} 12. Rac1 {[%clk 0:02:48]}  Na2 {[%clk 0:02:36]} 13. Ra1 {[%clk 0:02:49]}  Nb4 {[%clk 0:02:37]} 14. Rac1 {[%clk 0:02:46]}  c6 {[%clk 0:02:30]} 15. Kh1 {[%clk 0:02:33]}  Nd7 {[%clk 0:02:16]} 16. Rg1 {[%clk 0:02:21]}  Bf6 {[%clk 0:02:14]} 17. e5 {[%clk 0:02:18]}  Be7 {[%clk 0:02:14]} 18. Qe3 {[%clk 0:02:13]}  b5 {[%clk 0:02:12]} 19. g4 {[%clk 0:01:52]}  bxa4 {[%clk 0:02:09]} 20. bxa4 {[%clk 0:01:53]}  Rb8 {[%clk 0:02:02]} 21. Ba1 {[%clk 0:01:52]}  Qb6 {[%clk 0:02:00]} 22. Qf4 {[%clk 0:01:44]}  Qd8 {[%clk 0:01:32]} 23. Bh3 {[%clk 0:01:39]}  g5 {[%clk 0:01:13]} 24. Qg3 {[%clk 0:01:35]}  Nc5 {[%clk 0:01:08]} 25. Bf1 {[%clk 0:01:29]}  Nxa4 {[%clk 0:01:02]} 26. h4 {[%clk 0:01:16]}  Na2 {[%clk 0:00:59]} 27. Re1 {[%clk 0:01:11]}  N4c3 {[%clk 0:00:47]} 28. Kg2 {[%clk 0:01:09]}  gxh4 {[%clk 0:00:42]} 29. Qf4 {[%clk 0:01:04]}  Bg5 {[%clk 0:00:42]} 30. Nxg5 {[%clk 0:00:54]}  Qxg5 {[%clk 0:00:43]} 31. Qxg5+ {[%clk 0:00:52]}  hxg5 {[%clk 0:00:44]} 32. Nf3 {[%clk 0:00:50]}  Rb4 {[%clk 0:00:36]} 33. Kh3 {[%clk 0:00:48]}  Rf4 {[%clk 0:00:29]} 34. Bg2 {[%clk 0:00:33]}  Kg7 {[%clk 0:00:25]} 35. Nxg5 {[%clk 0:00:17]}  Rxf2 {[%clk 0:00:24]} 36. Kxh4 {[%clk 0:00:17]}  Bg6 {[%clk 0:00:20]} 37. Kg3 {[%clk 0:00:17]}  Rxc2 {[%clk 0:00:20]} 38. Rh1 {[%clk 0:00:18]}  Rb8 {[%clk 0:00:17]} 39. Ref1 {[%clk 0:00:12]}  Ne2+ {[%clk 0:00:16]} 40. Kf3 {[%clk 0:00:08]}  Rb4 {[%clk 0:00:15]} 41. Ke3 {[%clk 0:00:07]}  Rxg4 {[%clk 0:00:13]} 42. Bf3 {[%clk 0:00:02]}  Rxg5 {[%clk 0:00:09]} 43. Bxe2 {[%clk 0:00:02]}  Nc3 {[%clk 0:00:08]} 44. Bf3 {[%clk 0:00:02]}  Rf5 {[%clk 0:00:05]} 45. Bg4 {[%clk 0:00:02]}  Rg5 {[%clk 0:00:04]} 46. Bf3 {[%clk 0:00:02]}  Nb5 {[%clk 0:00:04]} 47. Kf4 {[%clk 0:00:03]}  Rf5+ {[%clk 0:00:04]} 48. Kg3 {[%clk 0:00:04]}  Rd2 {[%clk 0:00:04]} 49. Bg4 {[%clk 0:00:04]}  Rxd3+ {[%clk 0:00:05]} 50. Kh4 {[%clk 0:00:05]}  Rxf1 {[%clk 0:00:05]} 51. Rxf1 {[%clk 0:00:06]}  d4 {[%clk 0:00:05]} 52. Bb2 {[%clk 0:00:06]}  c5 {[%clk 0:00:05]} 53. Bc1 {[%clk 0:00:07]}  Nc3 {[%clk 0:00:05]} 54. Bg5 {[%clk 0:00:08]}  Ne4 {[%clk 0:00:06]} 55. Bf6+ {[%clk 0:00:08]}  Nxf6 {[%clk 0:00:06]} 56. exf6+ {[%clk 0:00:09]}  Kh6 {[%clk 0:00:06]} 57. Rh1 {[%clk 0:00:08]}  Re3 {[%clk 0:00:06]} 58. Bf3 {[%clk 0:00:08]}  Bf5 {[%clk 0:00:04]} 59. Bh5 {[%clk 0:00:04]}  Re4+ {[%clk 0:00:03]} 60. Kg3 {[%clk 0:00:05]}  Kg5 {[%clk 0:00:04]} 61. Bxf7 {[%clk 0:00:05]}  Kxf6 {[%clk 0:00:04]} 62. Be8 {[%clk 0:00:06]}  Ke5 {[%clk 0:00:04]} 63. Bc6 {[%clk 0:00:06]}  Re3+ {[%clk 0:00:05]} 64. Kf2 {[%clk 0:00:07]}  c4 {[%clk 0:00:06]} 65. Ra1 {[%clk 0:00:07]}  c3 {[%clk 0:00:06]} 66. Rxa5+ {[%clk 0:00:08]}  Kf4 {[%clk 0:00:07]} 67. Ba4 {[%clk 0:00:08]}  e5 {[%clk 0:00:07]} 68. Rc5 {[%clk 0:00:09]}  Rf3+ {[%clk 0:00:07]} 69. Ke2 {[%clk 0:00:09]}  Bd3+ {[%clk 0:00:07]} 0-1


[Site "https://www.chess.com"]

[Event "Titled Tuesday Blitz January 04 2022"]
[White "Terry, Renato"]
[Black "Sargsyan, Anna M."]
[WhiteFideId "3803457"]
[BlackFideId "13308130"]
[WhiteElo "2577"]
[BlackElo "2271"]
[Result "1-0"]
[Round "07"]
[TimeControl "180+1"]
[Date "2022.01.04"]
[WhiteClock "0:01:22"]
[BlackClock "0:00:06"]

1. e4 {[%clk 0:03:00]}  c6 {[%clk 0:03:00]} 2. Nf3 {[%clk 0:02:59]}  d5 {[%clk 0:03:01]} 3. exd5 {[%clk 0:02:59]}  cxd5 {[%clk 0:03:02]} 4. Ne5 {[%clk 0:03:00]}  Nf6 {[%clk 0:03:01]} 5. d4 {[%clk 0:03:00]}  Nc6 {[%clk 0:03:01]} 6. c3 {[%clk 0:03:00]}  a6 {[%clk 0:02:56]} 7. Bd3 {[%clk 0:03:00]}  g6 {[%clk 0:02:50]} 8. O-O {[%clk 0:03:00]}  Bg7 {[%clk 0:02:51]} 9. Qe2 {[%clk 0:02:59]}  O-O {[%clk 0:02:51]} 10. Nd2 {[%clk 0:03:00]}  Na5 {[%clk 0:02:45]} 11. a4 {[%clk 0:02:56]}  Re8 {[%clk 0:02:45]} 12. f4 {[%clk 0:02:56]}  e6 {[%clk 0:02:41]} 13. g4 {[%clk 0:02:55]}  Bd7 {[%clk 0:02:40]} 14. g5 {[%clk 0:02:55]}  Nh5 {[%clk 0:02:38]} 15. Qg4 {[%clk 0:02:38]}  Rc8 {[%clk 0:02:35]} 16. Rf3 {[%clk 0:02:38]}  Rf8 {[%clk 0:02:13]} 17. Rh3 {[%clk 0:02:37]}  f5 {[%clk 0:02:09]} 18. gxf6 {[%clk 0:02:28]}  Nxf6 {[%clk 0:02:05]} 19. Qe2 {[%clk 0:02:08]}  Be8 {[%clk 0:01:53]} 20. Ndf3 {[%clk 0:01:44]}  Nb3 {[%clk 0:01:51]} 21. Rb1 {[%clk 0:01:44]}  Nxc1 {[%clk 0:01:50]} 22. Rxc1 {[%clk 0:01:45]}  Nh5 {[%clk 0:01:38]} 23. Rxh5 {[%clk 0:01:45]}  gxh5 {[%clk 0:01:38]} 24. Ng5 {[%clk 0:01:46]}  Qf6 {[%clk 0:01:30]} 25. Rf1 {[%clk 0:01:38]}  Bg6 {[%clk 0:01:22]} 26. Nd7 {[%clk 0:01:37]}  Qe7 {[%clk 0:00:42]} 27. Nxf8 {[%clk 0:01:37]}  Rxf8 {[%clk 0:00:36]} 28. Bxg6 {[%clk 0:01:36]}  hxg6 {[%clk 0:00:35]} 29. Qxe6+ {[%clk 0:01:36]}  Qxe6 {[%clk 0:00:35]} 30. Nxe6 {[%clk 0:01:37]}  Re8 {[%clk 0:00:34]} 31. Nc7 {[%clk 0:01:36]}  Re2 {[%clk 0:00:34]} 32. Rf2 {[%clk 0:01:34]}  Re1+ {[%clk 0:00:30]} 33. Kg2 {[%clk 0:01:34]}  Kf7 {[%clk 0:00:15]} 34. Nxd5 {[%clk 0:01:33]}  Ke6 {[%clk 0:00:15]} 35. Nb6 {[%clk 0:01:30]}  Kf5 {[%clk 0:00:14]} 36. Kf3 {[%clk 0:01:29]}  Bh6 {[%clk 0:00:12]} 37. Nd5 {[%clk 0:01:29]}  h4 {[%clk 0:00:12]} 38. Ne3+ {[%clk 0:01:29]}  Ke6 {[%clk 0:00:11]} 39. Rg2 {[%clk 0:01:29]}  Kf7 {[%clk 0:00:10]} 40. Ng4 {[%clk 0:01:24]}  Bg7 {[%clk 0:00:09]} 41. Ne5+ {[%clk 0:01:24]}  Bxe5 {[%clk 0:00:08]} 42. fxe5 {[%clk 0:01:25]}  h3 {[%clk 0:00:06]} 43. Rf2 {[%clk 0:01:24]}  Ke6 {[%clk 0:00:05]} 44. Kg3 {[%clk 0:01:24]}  g5 {[%clk 0:00:05]} 45. Kxh3 {[%clk 0:01:24]}  Rg1 {[%clk 0:00:05]} 46. Rg2 {[%clk 0:01:22]}  Rb1 {[%clk 0:00:06]} 47. Kg4 {[%clk 0:01:22]} 1-0


[Site "https://www.chess.com"]

[Event "Titled Tuesday Blitz January 04 2022"]
[White "Tregubov, Pavel V."]
[Black "Holt, Conrad"]
[WhiteFideId "4115341"]
[BlackFideId "2034387"]
[WhiteElo "2341"]
[BlackElo "2586"]
[Result "1-0"]
[Round "07"]
[TimeControl "180+1"]
[Date "2022.01.04"]
[WhiteClock "0:00:13"]
[BlackClock "0:00:02"]

1. e4 {[%clk 0:03:00]}  e6 {[%clk 0:03:00]} 2. d4 {[%clk 0:03:00]}  d5 {[%clk 0:03:00]} 3. exd5 {[%clk 0:03:00]}  exd5 {[%clk 0:03:00]} 4. Nf3 {[%clk 0:03:01]}  Bd6 {[%clk 0:03:00]} 5. c4 {[%clk 0:02:59]}  c6 {[%clk 0:03:00]} 6. Nc3 {[%clk 0:02:56]}  Ne7 {[%clk 0:02:59]} 7. cxd5 {[%clk 0:02:52]}  cxd5 {[%clk 0:02:58]} 8. Bd3 {[%clk 0:02:49]}  Nbc6 {[%clk 0:02:58]} 9. O-O {[%clk 0:02:49]}  Bg4 {[%clk 0:02:57]} 10. h3 {[%clk 0:02:48]}  Bh5 {[%clk 0:02:49]} 11. g4 {[%clk 0:02:46]}  Bg6 {[%clk 0:02:49]} 12. Re1 {[%clk 0:02:45]}  O-O {[%clk 0:02:48]} 13. Ne5 {[%clk 0:02:43]}  Bxd3 {[%clk 0:02:40]} 14. Qxd3 {[%clk 0:02:43]}  Ng6 {[%clk 0:02:40]} 15. f4 {[%clk 0:02:38]}  Qh4 {[%clk 0:02:36]} 16. Bd2 {[%clk 0:02:27]}  Nxd4 {[%clk 0:02:30]} 17. Qxd4 {[%clk 0:02:26]}  Qg3+ {[%clk 0:02:29]} 18. Kf1 {[%clk 0:02:26]}  Qxh3+ {[%clk 0:02:29]} 19. Kg1 {[%clk 0:02:18]}  Nh4 {[%clk 0:02:18]} 20. Qf2 {[%clk 0:02:00]}  Bc5 {[%clk 0:02:03]} 21. Be3 {[%clk 0:02:00]}  d4 {[%clk 0:02:00]} 22. Qh2 {[%clk 0:01:44]}  Qxh2+ {[%clk 0:01:58]} 23. Kxh2 {[%clk 0:01:44]}  dxe3 {[%clk 0:01:58]} 24. Kg3 {[%clk 0:01:42]}  Ng6 {[%clk 0:01:57]} 25. Nd7 {[%clk 0:01:42]}  Rfc8 {[%clk 0:01:56]} 26. Nxc5 {[%clk 0:01:42]}  Rxc5 {[%clk 0:01:57]} 27. Rxe3 {[%clk 0:01:41]}  h5 {[%clk 0:01:52]} 28. Rae1 {[%clk 0:01:37]}  hxg4 {[%clk 0:01:50]} 29. Re8+ {[%clk 0:01:29]}  Rxe8 {[%clk 0:01:49]} 30. Rxe8+ {[%clk 0:01:29]}  Kh7 {[%clk 0:01:50]} 31. Ne4 {[%clk 0:01:27]}  Rd5 {[%clk 0:01:34]} 32. Ng5+ {[%clk 0:01:24]}  Kh6 {[%clk 0:01:33]} 33. Nxf7+ {[%clk 0:01:24]}  Kh5 {[%clk 0:01:32]} 34. Re3 {[%clk 0:01:05]}  Rf5 {[%clk 0:01:18]} 35. Ne5 {[%clk 0:00:52]}  Nxf4 {[%clk 0:01:16]} 36. Nxg4 {[%clk 0:00:51]}  Ng6 {[%clk 0:01:12]} 37. Re2 {[%clk 0:00:42]}  Kg5 {[%clk 0:01:06]} 38. Rc2 {[%clk 0:00:38]}  Nh4 {[%clk 0:00:57]} 39. Nh2 {[%clk 0:00:33]}  Rf7 {[%clk 0:00:53]} 40. Rc5+ {[%clk 0:00:32]}  Nf5+ {[%clk 0:00:53]} 41. Kf3 {[%clk 0:00:32]}  Kh4 {[%clk 0:00:50]} 42. Ke4 {[%clk 0:00:26]}  Ng3+ {[%clk 0:00:48]} 43. Ke3 {[%clk 0:00:24]}  Kh3 {[%clk 0:00:46]} 44. Nf3 {[%clk 0:00:23]}  Kg2 {[%clk 0:00:42]} 45. Ng5 {[%clk 0:00:22]}  Re7+ {[%clk 0:00:38]} 46. Kd3 {[%clk 0:00:22]}  Rd7+ {[%clk 0:00:30]} 47. Ke3 {[%clk 0:00:22]}  Nf1+ {[%clk 0:00:29]} 48. Kf4 {[%clk 0:00:22]}  Rd2 {[%clk 0:00:20]} 49. Ne4 {[%clk 0:00:19]}  Rxb2 {[%clk 0:00:19]} 50. Rg5+ {[%clk 0:00:19]}  Kh2 {[%clk 0:00:18]} 51. Rxg7 {[%clk 0:00:17]}  a5 {[%clk 0:00:17]} 52. a4 {[%clk 0:00:16]}  Rb4 {[%clk 0:00:14]} 53. Kf3 {[%clk 0:00:15]}  Rxa4 {[%clk 0:00:08]} 54. Kf2 {[%clk 0:00:14]}  Kh3 {[%clk 0:00:04]} 55. Ng5+ {[%clk 0:00:14]}  Kg4 {[%clk 0:00:04]} 56. Nf7+ {[%clk 0:00:13]}  Kf5 {[%clk 0:00:04]} 57. Kxf1 {[%clk 0:00:14]}  Kf6 {[%clk 0:00:04]} 58. Rh7 {[%clk 0:00:14]}  Rd4 {[%clk 0:00:04]} 59. Nh6 {[%clk 0:00:12]}  b5 {[%clk 0:00:03]} 60. Rb7 {[%clk 0:00:12]}  Rb4 {[%clk 0:00:02]} 61. Ke2 {[%clk 0:00:13]} 1-0


[Site "https://www.chess.com"]